fUSD/lending_fUSD_20241104
["ID","MTS","AMOUNT","RATE_DAILY","PERIOD"]
[341258983,1730731855553,-711.38,0.00035616,2]
[341258984,1730731855562,-500.0,0.00035616,2]
[341258985,1730731855572,-500.0,0.00035616,2]
[341258986,1730731855581,-500.0,0.00035616,2]
[341258987,1730731855591,-500.0,0.00035616,2]
[341258988,1730731855605,-1088.15,0.00035616,2]
[341258989,1730731855615,-159.20258647,0.00035616,2]
[341258990,1730731855624,-500.0,0.00035616,2]
[341258991,1730731855634,-500.0,0.00035616,2]
[341258992,1730731855643,-508.989438,0.00035616,2]
[341258993,1730731855654,-538.25756116,0.00035616,2]
[341258994,1730731855664,-500.0,0.00035616,2]
[341258995,1730731855673,-500.0,0.00035616,2]
[341258996,1730731855683,-352.52020838,0.00035673,5]
[341258997,1730731855693,-500.76386501,0.00035673,5]
[341258998,1730731855703,-151.0,0.0003575,2]
[341258999,1730731855712,-175.85,0.00035783,2]
[341259000,1730731855721,-7994.28523818,0.00035784,2]
[341259001,1730731855731,-204.91746514,0.00035784,7]
[341259002,1730731855740,-300.0000021,0.000358,2]
[341259003,1730731855750,-210.3639549,0.00035873,2]
[341259004,1730731855760,-500.0,0.00035883,2]
[341259005,1730731855769,-500.0,0.00035883,2]
[341259006,1730731855779,-506.46785794,0.00035883,2]
[341259007,1730731855789,-919.29,0.00035883,2]
[341259008,1730731855799,-500.0,0.00035883,2]
[341259009,1730731855808,-865.9,0.00035883,2]
[341259010,1730731855818,-500.0,0.00035884,2]
[341259011,1730731855827,-500.0,0.00035884,2]
[341259012,1730731855837,-500.0,0.00035884,2]
[341259013,1730731855853,-500.0,0.00035884,2]
[341259014,1730731855862,-500.0,0.00035884,2]
[341259015,1730731855871,-500.0,0.00035884,2]
[341259016,1730731855880,-500.0,0.00035884,2]
[341259017,1730731855890,-500.0,0.00035884,2]
[341259018,1730731855899,-500.0,0.00035884,2]
[341259019,1730731855909,-504.68433001,0.00035884,2]
[341259020,1730731855918,-500.0,0.00035884,2]
[341259021,1730731855928,-500.0,0.00035884,2]
[341259022,1730731855937,-500.0,0.00035884,2]
[341259023,1730731855946,-505.01180651,0.00035884,2]
[341259024,1730731855956,-500.0,0.00035884,2]
[341259025,1730731855965,-500.0,0.00035884,2]
[341259026,1730731855975,-500.0,0.00035884,2]
[341259027,1730731855984,-500.0,0.00035884,2]
[341259028,1730731855993,-516.01779805,0.00035884,2]
[341259029,1730731856005,-500.0,0.00035884,2]
[341259030,1730731856015,-500.0,0.00035884,2]
[341259031,1730731856024,-583.90091752,0.00035884,2]
[341259032,1730731856034,-559.53408934,0.00035884,2]
[341259033,1730731856043,-500.0,0.00035884,2]
[341259034,1730731856053,-500.0,0.00035884,2]
[341259035,1730731856063,-219.41910414,0.00035884,2]
[341259036,1730731856073,-500.0,0.00035884,2]
[341259037,1730731856083,-520.86707197,0.00035884,2]
[341259038,1730731856096,-500.0,0.00035884,2]
[341259039,1730731856106,-500.0,0.00035884,2]
[341259040,1730731856116,-500.0,0.00035884,2]
[341259041,1730731856126,-506.47600073,0.00035884,2]
[341259042,1730731856136,-500.0,0.00035884,2]
[341259043,1730731856145,-500.0,0.00035884,2]
[341259044,1730731856155,-500.0,0.00035884,2]
[341259045,1730731856165,-500.0,0.00035884,2]
[341259046,1730731856175,-580.62820955,0.00035884,2]
[341259047,1730731856185,-500.0,0.00035884,2]
[341259048,1730731856195,-500.0,0.00035884,2]
[341259049,1730731856205,-500.0,0.00035884,2]
[341259050,1730731856215,-500.0,0.00035884,2]
[341259051,1730731856224,-500.0,0.00035884,2]
[341259052,1730731856234,-500.0,0.00035884,2]
[341259053,1730731856244,-500.0,0.00035884,2]
[341259054,1730731856254,-500.0,0.00035884,2]
[341259055,1730731856263,-500.0,0.00035884,2]
[341259056,1730731856276,-500.0,0.00035884,2]
[341259057,1730731856287,-500.0,0.00035884,2]
[341259058,1730731856298,-500.0,0.00035884,2]
[341259059,1730731856309,-500.0,0.00035884,2]
[341259060,1730731856319,-531.37150002,0.00035884,2]
[341259061,1730731856329,-500.0,0.00035884,2]
[341259062,1730731856341,-500.0,0.00035884,2]
[341259063,1730731856355,-500.0,0.00035884,2]
[341259064,1730731856364,-500.0,0.00035884,2]
[341259065,1730731856374,-500.0,0.00035884,2]
[341259066,1730731856383,-500.0,0.00035884,2]
[341259067,1730731856392,-500.0,0.00035884,2]
[341259068,1730731856402,-302.5447435,0.00035884,2]
[341259069,1730731856413,-500.0,0.00035884,2]
[341259070,1730731856425,-500.0,0.00035884,2]
[341259071,1730731856436,-500.0,0.00035884,2]
[341259072,1730731856446,-500.0,0.00035884,2]
[341259073,1730731856456,-604.88906515,0.00035884,2]
[341259074,1730731856465,-500.0,0.00035884,2]
[341259075,1730731856475,-568.43723487,0.00035884,2]
[341259076,1730731856485,-641.50022928,0.00035884,2]
[341259077,1730731856495,-500.0,0.00035884,2]
[341259078,1730731856504,-622.08618676,0.00035884,2]
[341259079,1730731856515,-237.6237834,0.00035884,2]
[341259080,1730731856525,-500.0,0.00035884,2]
[341259081,1730731856535,-500.0,0.00035884,2]
[341259082,1730731856545,-150.0,0.00035884,2]
[341259083,1730731856554,-500.0,0.00035884,2]
[341259084,1730731856564,-530.06661831,0.00035884,2]
[341259085,1730731856573,-449.77246004,0.00035884,2]
[341259086,1730731856583,-500.0,0.00035884,2]
[341259087,1730731856745,-500.0,0.00035884,2]
[341259088,1730731856756,-500.0,0.00035884,2]
[341259089,1730731856765,-500.0,0.00035884,2]
[341259090,1730731856774,-500.0,0.00035884,2]
[341259091,1730731856790,-452.16960071,0.00035884,2]
[341259092,1730731856800,-500.0,0.00035884,2]
[341259093,1730731856810,-500.0,0.00035884,2]
[341259094,1730731856821,-500.0,0.00035884,2]
[341259095,1730731856835,-500.0,0.00035884,2]
[341259096,1730731856845,-500.0,0.00035884,2]
[341259097,1730731856855,-500.0,0.00035884,2]
[341259098,1730731856865,-500.0,0.00035884,2]
[341259099,1730731856874,-500.0,0.00035884,2]
[341259100,1730731856884,-1355.34086572,0.00035885,30]
[341259101,1730731856897,-881.52394098,0.00035885,2]
[341259102,1730731856907,-500.0,0.00035886,2]
[341259103,1730731856917,-509.81998122,0.00035886,2]
[341259104,1730731856927,-919.29,0.00035886,2]
[341259105,1730731856936,-865.9,0.00035886,2]
[341259106,1730731856945,-500.0,0.0003589,2]
[341259107,1730731856955,-500.0,0.0003589,2]
[341259108,1730731856964,-500.0,0.0003589,2]
[341259109,1730731856973,-500.0,0.0003589,2]
[341259110,1730731856983,-590.43140094,0.0003589,2]
[341259111,1730731856992,-544.50501889,0.0003589,2]
[341259112,1730731857002,-525.44209369,0.0003589,2]
[341259113,1730731857011,-500.0,0.0003589,2]
[341259114,1730731857021,-500.0,0.0003589,2]
[341259115,1730731857030,-500.0,0.0003589,2]
[341259116,1730731857039,-500.0,0.0003589,2]
[341259117,1730731857049,-500.0,0.0003589,2]
[341259118,1730731857058,-500.0,0.0003589,2]
[341259119,1730731857068,-500.0,0.0003589,2]
[341259120,1730731857077,-509.7587617,0.0003589,2]
[341259121,1730731857087,-520.80323773,0.0003589,2]
[341259122,1730731857098,-500.0,0.0003589,2]
[341259123,1730731857107,-630.96782528,0.0003589,2]
[341259124,1730731857116,-500.0,0.0003589,2]
[341259125,1730731857126,-500.0,0.0003589,2]
[341259126,1730731857136,-500.0,0.0003589,2]
[341259127,1730731857145,-500.0,0.0003589,2]
[341259128,1730731857155,-510.6148438,0.0003589,2]
[341259129,1730731857164,-500.0,0.0003589,2]
[341259130,1730731857173,-500.0,0.0003589,2]
[341259131,1730731857182,-500.0,0.0003589,2]
[341259132,1730731857192,-280.85965681,0.0003589,2]
[341259133,1730731857222,-278.83999685,0.0003589,2]
[341259134,1730731857231,-246.16000315,0.0003589,2]
[341259135,1730731857242,-253.83999685,0.0003589,2]
[341259136,1730731857252,-500.0,0.0003589,2]
[341259137,1730731857262,-615.69467654,0.0003589,2]
[341259138,1730731857274,-178.95078162,0.0003589,2]
[341259139,1730731857297,-321.04921838,0.0003589,2]
[341259140,1730731857307,-500.0,0.0003589,2]
[341259141,1730731857317,-500.0,0.0003589,2]
[341259142,1730731857327,-500.0,0.0003589,2]
[341259143,1730731857336,-500.0,0.0003589,2]
[341259144,1730731857349,-500.0,0.0003589,2]
[341259145,1730731857359,-500.0,0.0003589,2]
[341259146,1730731857368,-500.0,0.0003589,2]
[341259147,1730731857378,-500.0,0.0003589,2]
[341259148,1730731857387,-500.0,0.0003589,2]
[341259149,1730731857397,-508.68175048,0.0003589,2]
[341259150,1730731857406,-500.0,0.0003589,2]
[341259151,1730731857416,-571.16756911,0.0003589,2]
[341259152,1730731857426,-641.85780402,0.0003589,2]
[341259153,1730731857435,-500.0,0.0003589,2]
[341259154,1730731857445,-500.0,0.0003589,2]
[341259155,1730731857455,-500.0,0.0003589,2]
[341259156,1730731857465,-500.0,0.0003589,2]
[341259157,1730731857474,-500.0,0.0003589,2]
[341259158,1730731857483,-678.41,0.0003589,2]
[341259159,1730731857493,-500.0,0.0003589,2]
[341259160,1730731857502,-500.0,0.0003589,2]
[341259161,1730731857512,-500.0,0.0003589,2]
[341259162,1730731857521,-500.0,0.0003589,2]
[341259163,1730731857530,-500.0,0.0003589,2]
[341259164,1730731857540,-500.0,0.0003589,2]
[341259165,1730731857549,-500.0,0.0003589,2]
[341259166,1730731857559,-496.29271353,0.0003589,2]
[341259167,1730731857568,-500.0,0.0003589,2]
[341259168,1730731857578,-500.0,0.0003589,2]
[341259169,1730731857587,-500.0,0.0003589,2]
[341259170,1730731857596,-524.5873902,0.0003589,2]
[341259171,1730731857606,-529.34452611,0.0003589,2]
[341259172,1730731857615,-500.0,0.0003589,2]
[341259173,1730731857624,-899.84,0.0003589,2]
[341259174,1730731857633,-500.0,0.0003589,2]
[341259175,1730731857643,-500.0,0.0003589,2]
[341259176,1730731857653,-500.0,0.0003589,2]
[341259177,1730731857663,-500.0,0.0003589,2]
[341259178,1730731857672,-163.04890535,0.0003589,2]
[341259179,1730731857681,-500.0,0.0003589,2]
[341259180,1730731857692,-559.73145192,0.0003589,2]
[341259181,1730731857701,-500.0,0.0003589,2]
[341259182,1730731857710,-500.0,0.0003589,2]
[341259183,1730731857720,-500.0,0.0003589,2]
[341259184,1730731857730,-500.0,0.0003589,2]
[341259185,1730731857740,-500.0,0.0003589,2]
[341259186,1730731857749,-500.0,0.0003589,2]
[341259187,1730731857759,-500.0,0.0003589,2]
[341259188,1730731857769,-500.0,0.0003589,2]
[341259189,1730731857779,-500.0,0.0003589,2]
[341259190,1730731857788,-500.0,0.0003589,2]
[341259191,1730731857798,-500.0,0.0003589,2]
[341259192,1730731857808,-500.0,0.0003589,2]
[341259193,1730731857818,-394.81510844,0.0003589,2]
[341259194,1730731857834,-317.75489156,0.0003589,2]
[341259195,1730731857843,-309.35329575,0.0003589,2]
[341259196,1730731858192,-342.5,0.0002788,7]
[341259197,1730731858204,-261.7099,0.0002788,7]
[341259198,1730731858214,-604.2099,0.00032044,7]
[341259199,1730731858223,-604.2099,0.00035616,7]
[341259200,1730731858233,-241.7703,0.00035616,7]
[341259229,1730733031915,-156.75,0.00015342,2]
[341259230,1730733031925,-168.42,0.00015342,2]
[341259231,1730733031934,-210.65,0.00015342,2]
[341259232,1730733031944,-150.0,0.00016095,2]
[341259233,1730733031954,-239.0,0.00019725,2]
[341259234,1730733031963,-250.0,0.00021,2]
[341259235,1730733031973,-300.0,0.00023,2]
[341259236,1730733031984,-350.0,0.00025,2]
[341259237,1730733031993,-1321.22259718,0.00026563,2]
[341259238,1730733032003,-400.0,0.00027,2]
[341259239,1730733032014,-450.0,0.00029,2]
[341259240,1730733032023,-273.29,0.00029,2]
[341259241,1730733032032,-151.448,0.0002928,2]
[341259242,1730733032041,-374.0,0.00029868,2]
[341259243,1730733032051,-451.0,0.00029869,2]
[341259244,1730733032060,-112.50574768,0.00029869,2]
[341259245,1730733032079,-699.49425232,0.00029869,2]
[341259246,1730733032088,-292.83167527,0.00029869,2]
[341259247,1730733032164,-515.16832473,0.00029869,2]
[341259248,1730733032174,-3375.0,0.00029869,2]
[341259249,1730733032183,-1402.073,0.00029869,2]
[341259250,1730733032193,-150.0,0.00029869,2]
[341259251,1730733032203,-151.0,0.0003,120]
[341259252,1730733032212,-151.0,0.0003,120]
[341259253,1730733032222,-175.89,0.0003003,2]
[341259254,1730733032231,-150.99,0.00030548,2]
[341259255,1730733032240,-156.75,0.00030548,2]
[341259256,1730733032250,-500.0,0.00031,2]
[341259257,1730733032259,-175.57,0.00031029,2]
[341259258,1730733032268,-497.85106732,0.00031334,2]
[341259259,1730733032280,-23402.14893268,0.00031334,2]
[341259260,1730733032289,-154.93,0.00031537,2]
[341259261,1730733032299,-842.05,0.00031539,2]
[341259262,1730733032308,-285.78,0.0003163,10]
[341259263,1730733032325,-238.15,0.0003163,10]
[341259264,1730733032335,-78528.13,0.0003164,2]
[341259265,1730733032344,-250.0,0.00031688,2]
[341259266,1730733032354,-160.39,0.00031769,2]
[341259267,1730733032363,-175.57,0.00031902,2]
[341259268,1730733032373,-263.16,0.00032304,2]
[341259269,1730733032382,-175.57,0.00032774,2]
[341259271,1730733032392,-3375.0,0.00032869,2]
[341259273,1730733032401,-1000.0,0.00032984,2]
[341259290,1730733032604,-550.0,0.00033,2]
[341259291,1730733032615,-9136.25,0.00033272,120]
[341259292,1730733032624,-150.0,0.00033414,7]
[341259293,1730733032634,-263.16,0.00033579,2]
[341259294,1730733032645,-161.99,0.00033622,120]
[341259295,1730733032654,-185.89,0.00033637,120]
[341259296,1730733032664,-175.57,0.00033647,2]
[341259297,1730733032675,-842.05,0.00033803,2]
[341259298,1730733032685,-159.56,0.00033949,2]
[341259299,1730733032694,-175.57,0.00034519,2]
[341259301,1730733032703,-263.16,0.00034854,2]
[341259303,1730733032713,-212.97107919,0.00034999,7]
[341259305,1730733032722,-56923.0549071,0.00035,2]
[341259307,1730733032733,-595.75299482,0.00035,2]
[341259310,1730733032747,-20522.99835298,0.00035,2]
[341259312,1730733032757,-1450.0,0.00035,2]
[341259314,1730733032768,-722.32986466,0.00035,2]
[341259316,1730733032779,-1636.4140226,0.00035,2]
[341259373,1730733038001,-593.07,0.00035,2]
[341259374,1730733038012,-881.55,0.00035,2]
[341259375,1730733038195,-988.13465196,0.00035,2]
[341259376,1730733038376,-2001.13875,0.00035,2]
[341259377,1730733038526,-38965.36999347,0.00035,2]
[341259378,1730733038538,-1844.47718288,0.00035,2]
[341259504,1730733040071,-3609.9,0.00035,2]
[341259521,1730733040233,-3009.03,0.00035,2]
[341259554,1730733040527,-0.99397192,0.00035,2]
[341259688,1730733044283,-198.46,0.0003499,10]
[341259691,1730733044294,-68347.34939441,0.00035,2]
[341259693,1730733044306,-185258.4359132,0.00035,2]
[341259695,1730733044316,-600.0,0.00035,2]
[341259696,1730733044326,-2375.674,0.00035416,2]
[341259698,1730733044336,-1355.34086572,0.00035515,30]
[341259700,1730733044346,-10113.2491,0.00035516,2]
[341259702,1730733044356,-704.72711245,0.00035516,2]
[341259705,1730733044371,-389.64551786,0.00035516,2]
[341259710,1730733044405,-4313.05336969,0.00035516,2]
[341259712,1730733044415,-100000.0,0.00035516,2]
[341259714,1730733044424,-500.0,0.00035615,2]
[341259715,1730733044434,-500.0,0.00035616,2]
[341259718,1730733044443,-500.0,0.00035616,2]
[341259719,1730733044453,-429.28612402,0.00035616,2]
[341259720,1730733044462,-500.0,0.00035616,2]
[341259721,1730733044471,-500.0,0.00035616,2]
[341259722,1730733044481,-500.0,0.00035616,2]
[341259723,1730733044490,-590.43140094,0.00035616,2]
[341259724,1730733044499,-500.0,0.00035616,2]
[341259725,1730733044508,-513.52934879,0.00035616,2]
[341259726,1730733044518,-489.83507223,0.00035616,2]
[341259727,1730733044527,-500.0,0.00035616,2]
[341259728,1730733044537,-500.0,0.00035616,2]
[341259729,1730733044546,-500.0,0.00035616,2]
[341259730,1730733044556,-500.0,0.00035616,2]
[341259732,1730733044567,-500.0,0.00035616,2]
[341259734,1730733044577,-500.0,0.00035616,2]
[341259735,1730733044587,-500.0,0.00035616,2]
[341259736,1730733044596,-500.0,0.00035616,2]
[341259737,1730733044606,-489.70316413,0.00035616,2]
[341259738,1730733044617,-500.0,0.00035616,2]
[341259739,1730733044626,-500.0,0.00035616,2]
[341259740,1730733044636,-544.50501889,0.00035616,2]
[341259741,1730733044645,-614.53052798,0.00035616,2]
[341259742,1730733044655,-500.0,0.00035616,2]
[341259743,1730733044664,-607.00578036,0.00035616,2]
[341259744,1730733044673,-525.44209369,0.00035616,2]
[341259745,1730733044687,-608.87040759,0.00035616,2]
[341259746,1730733044696,-500.0,0.00035616,2]
[341259747,1730733044705,-500.0,0.00035616,2]
[341259748,1730733044714,-500.0,0.00035616,2]
[341259750,1730733044723,-500.0,0.00035616,2]
[341259752,1730733044734,-500.0,0.00035616,2]
[341259753,1730733044743,-500.0,0.00035616,2]
[341259754,1730733044752,-500.0,0.00035616,2]
[341259755,1730733044761,-500.0,0.00035616,2]
[341259756,1730733044960,-571.44668258,0.00035616,2]
[341259757,1730733044971,-574.77,0.00035616,2]
[341259758,1730733044980,-500.0,0.00035616,2]
[341259759,1730733044990,-500.0,0.00035616,2]
[341259760,1730733045000,-500.0,0.00035616,2]
[341259761,1730733045010,-630.96782528,0.00035616,2]
[341259762,1730733045019,-524.36916252,0.00035616,2]
[341259763,1730733045028,-500.0,0.00035616,2]
[341259764,1730733045037,-500.0,0.00035616,2]
[341259765,1730733045046,-1000.0,0.00035616,30]
[341259766,1730733045055,-500.0,0.00035616,2]
[341259767,1730733045064,-500.0,0.00035616,2]
[341259768,1730733045073,-150.0,0.00035616,2]
[341259769,1730733045083,-500.0,0.00035616,2]
[341259770,1730733045093,-500.0,0.00035616,2]
[341259771,1730733045102,-500.0,0.00035616,2]
[341259772,1730733045112,-500.0,0.00035616,2]
[341259773,1730733045122,-530.06661831,0.00035616,2]
[341259774,1730733045132,-500.0,0.00035616,2]
[341259775,1730733045142,-500.0,0.00035616,2]
[341259776,1730733045151,-500.0,0.00035616,2]
[341259777,1730733045160,-500.0,0.00035616,2]
[341259778,1730733045169,-500.0,0.00035616,2]
[341259779,1730733045179,-500.0,0.00035616,2]
[341259780,1730733045189,-500.0,0.00035616,2]
[341259781,1730733045200,-500.0,0.00035616,2]
[341259782,1730733045210,-582.99893441,0.00035616,2]
[341259783,1730733045220,-500.0,0.00035616,2]
[341259784,1730733045230,-500.0,0.00035616,2]
[341259785,1730733045241,-500.0,0.00035616,2]
[341259786,1730733045251,-500.0,0.00035616,2]
[341259787,1730733045260,-500.0,0.00035616,2]
[341259788,1730733045271,-362.60037536,0.00035616,2]
[341259789,1730733045281,-500.0,0.00035616,2]
[341259790,1730733045291,-500.0,0.00035616,2]
[341259791,1730733045303,-500.0,0.00035616,2]
[341259792,1730733045317,-500.0,0.00035616,2]
[341259793,1730733045327,-500.0,0.00035616,2]
[341259794,1730733045337,-500.0,0.00035616,2]
[341259795,1730733045347,-500.0,0.00035616,2]
[341259796,1730733045357,-500.0,0.00035616,2]
[341259797,1730733045368,-500.0,0.00035616,2]
[341259798,1730733045378,-504.18956525,0.00035616,2]
[341259799,1730733045388,-547.51373297,0.00035616,2]
[341259800,1730733045398,-500.0,0.00035616,2]
[341259801,1730733045407,-500.0,0.00035616,2]
[341259802,1730733045418,-500.0,0.00035616,2]
[341259803,1730733045428,-500.0,0.00035616,2]
[341259804,1730733045437,-500.0,0.00035616,2]
[341259805,1730733045447,-500.0,0.00035616,2]
[341259806,1730733045458,-500.0,0.00035616,2]
[341259807,1730733045467,-500.0,0.00035616,2]
[341259808,1730733045477,-500.0,0.00035616,2]
[341259809,1730733045487,-568.33585575,0.00035616,2]
[341259810,1730733045497,-500.0,0.00035616,2]
[341259811,1730733045507,-500.0,0.00035616,2]
[341259812,1730733045516,-500.0,0.00035616,2]
[341259813,1730733045526,-452.16960071,0.00035616,2]
[341259814,1730733045536,-500.0,0.00035616,2]
[341259815,1730733045546,-500.0,0.00035616,2]
[341259816,1730733045556,-500.0,0.00035616,2]
[341259817,1730733045566,-500.0,0.00035616,2]
[341259818,1730733045577,-500.0,0.00035616,2]
[341259819,1730733045586,-543.44,0.00035616,2]
[341259820,1730733045596,-500.0,0.00035616,2]
[341259821,1730733045606,-500.0,0.00035616,2]
[341259822,1730733045615,-598.2501986,0.00035616,2]
[341259823,1730733045625,-500.0,0.00035616,2]
[341259824,1730733045635,-500.0,0.00035616,2]
[341259825,1730733045644,-500.0,0.00035616,2]
[341259826,1730733045654,-500.0,0.00035616,2]
[341259827,1730733045664,-643.31991217,0.00035616,2]
[341259828,1730733045676,-500.0,0.00035616,2]
[341259829,1730733045691,-500.0,0.00035616,2]
[341259830,1730733045702,-500.0,0.00035616,2]
[341259831,1730733045712,-183.33263903,0.00035616,2]
[341259832,1730733045723,-500.0,0.00035616,2]
[341259833,1730733045733,-500.0,0.00035616,2]
[341259834,1730733045743,-500.0,0.00035616,2]
[341259835,1730733045756,-500.0,0.00035616,2]
[341259836,1730733045766,-500.0,0.00035616,2]
[341259837,1730733045776,-500.0,0.00035616,2]
[341259838,1730733045787,-500.0,0.00035616,2]
[341259839,1730733045798,-500.0,0.00035616,2]
[341259840,1730733045809,-500.0,0.00035616,2]
[341259841,1730733045820,-500.0,0.00035616,2]
[341259842,1730733045833,-569.36155726,0.00035616,2]
[341259843,1730733045843,-517.38031108,0.00035616,2]
[341259844,1730733045853,-500.0,0.00035616,2]
[341259845,1730733045863,-500.0,0.00035616,2]
[341259846,1730733045873,-500.0,0.00035616,2]
[341259847,1730733045884,-591.54392884,0.00035616,2]
[341259848,1730733045893,-500.0,0.00035616,2]
[341259849,1730733045903,-500.0,0.00035616,2]
[341259850,1730733045912,-500.0,0.00035616,2]
[341259851,1730733045922,-500.0,0.00035616,2]
[341259852,1730733045933,-334.83073972,0.00035616,2]
[341259853,1730733045943,-500.0,0.00035616,2]
[341259854,1730733045953,-500.0,0.00035616,2]
[341259855,1730733045963,-500.0,0.00035616,2]
[341259856,1730733045973,-500.0,0.00035616,2]
[341259857,1730733045983,-500.0,0.00035616,2]
[341259858,1730733045993,-500.0,0.00035616,2]
[341259859,1730733046003,-522.2470912,0.00035616,2]
[341259860,1730733046013,-46.70584161,0.00035616,2]
[341259882,1730733046786,-453.29415839,0.00035616,2]
[341259884,1730733046796,-500.0,0.00035616,2]
[341259886,1730733046806,-486.50289058,0.00035616,2]
[341259889,1730733046818,-13.49710942,0.00035616,2]
[341259890,1730733046827,-500.0,0.00035616,2]
[341259892,1730733046837,-500.0,0.00035616,2]
[341259894,1730733046847,-500.0,0.00035616,2]
[341259896,1730733046856,-500.0,0.00035616,2]
[341259898,1730733046865,-500.0,0.00035616,2]
[341259900,1730733046874,-500.0,0.00035616,2]
[341259902,1730733046883,-500.0,0.00035616,2]
[341259905,1730733046894,-500.0,0.00035616,2]
[341259907,1730733046904,-547.11,0.00035616,2]
[341259909,1730733046914,-141.62161177,0.00035616,2]
[341259912,1730733046942,-358.37838823,0.00035616,2]
[341259914,1730733046953,-500.0,0.00035616,2]
[341259917,1730733046963,-500.0,0.00035616,2]
[341259919,1730733046972,-862.6,0.00035616,2]
[341259921,1730733046982,-500.0,0.00035616,2]
[341259923,1730733046992,-500.0,0.00035616,2]
[341259925,1730733047001,-500.0,0.00035616,2]
[341259927,1730733047011,-500.0,0.00035616,2]
[341259929,1730733047020,-189.39124919,0.00035616,2]
[341259931,1730733047029,-500.0,0.00035616,2]
[341259933,1730733047038,-500.0,0.00035616,2]
[341259935,1730733047047,-500.0,0.00035616,2]
[341259937,1730733047057,-500.0,0.00035616,2]
[341259939,1730733047065,-500.0,0.00035616,2]
[341259941,1730733047075,-520.38624863,0.00035616,2]
[341259943,1730733047087,-500.0,0.00035616,2]
[341259945,1730733047096,-500.0,0.00035616,2]
[341259946,1730733047106,-500.0,0.00035616,2]
[341259947,1730733047116,-611.25,0.00035616,2]
[341259948,1730733047126,-1657.15,0.00035616,2]
[341259949,1730733047138,-593.77554542,0.00035616,2]
[341259950,1730733047147,-500.0,0.00035616,2]
[341259951,1730733047157,-735.06,0.00035616,2]
[341259952,1730733047166,-500.0,0.00035616,2]
[341259953,1730733047175,-500.0,0.00035616,2]
[341259954,1730733047184,-500.0,0.00035616,2]
[341259955,1730733047194,-500.0,0.00035616,2]
[341259956,1730733047203,-500.0,0.00035616,2]
[341259957,1730733047212,-500.0,0.00035616,2]
[341259958,1730733047221,-500.0,0.00035616,2]
[341259959,1730733047230,-500.0,0.00035616,2]
[341259960,1730733047240,-513.37,0.00035616,2]
[341259961,1730733047249,-500.0,0.00035616,2]
[341259962,1730733047259,-633.45,0.00035616,2]
[341259963,1730733047268,-500.0,0.00035616,2]
[341259964,1730733047277,-500.0,0.00035616,2]
[341259965,1730733047287,-500.0,0.00035616,2]
[341259966,1730733047295,-500.0,0.00035616,2]
[341259967,1730733047305,-976.61,0.00035616,2]
[341259968,1730733047314,-1038.33,0.00035616,2]
[341259969,1730733047323,-500.0,0.00035616,2]
[341259970,1730733047334,-500.0,0.00035616,2]
[341259971,1730733047343,-500.0,0.00035616,2]
[341259972,1730733047352,-500.0,0.00035616,2]
[341259973,1730733047361,-500.0,0.00035616,2]
[341259974,1730733047370,-500.0,0.00035616,2]